[Event "Reykjavik Open 2024"]
[Site "Reykjavik"]
[Date "2024.03.17"]
[Round "4.27"]
[White "Eriksson, Jorgen"]
[Black "Wong-Godfrey, Emerson P"]
[Result "1/2-1/2"]
[ECO "D03"]
[WhiteElo "2154"]
[BlackElo "1799"]
[Annotator "RC"]
[PlyCount "82"]
[EventDate "2024.03.12"]
[EventCountry "ISL"]
[SourceTitle "playchess.com"]
[Source "ChessBase"]
[SourceQuality "1"]
[TimeControl "40/5400+30:1800+30"]

1. d4 {[%emt 0:00:06]} Nf6 {[%emt 0:00:17]} 2. Bg5 {[%emt 0:00:10]} e6 {[%emt 0:00:06]} 3. Nd2 {[%emt 0:00:06]} Be7 {[%emt 0:00:29]} 4. e3 {[%emt 0:00:24]} d5 {[%emt 0:00:59]} 5. Bd3 {[%emt 0:00:50]} h6 {[%emt 0:01:24]} 6. Bh4 {[%emt 0:00:10]} Nbd7 {[%emt 0:00:40]} 7. Ngf3 {[%emt 0:01:03]} O-O {[%emt 0:01:26]} 8. O-O {[%emt 0:00:45]} b6 {[%emt 0:04:27]} 9. Qe2 {[%emt 0:03:08]} Bb7 {[%emt 0:01:14]} 10. a4 {[%emt 0:00:59]} Ne4 {[%emt 0:04:37]} 11. Bxe7 {[%emt 0:00:49]} Qxe7 {[%emt 0:00:02]} 12. a5 {[%emt 0:04:38]} c5 {[%emt 0:12:10]} 13. Bb5 {[%emt 0:15:22]} Nxd2 {[%emt 0:18:08]} 14. Qxd2 {[%emt 0:01:55]} Rac8 {[%emt 0:07:38]} 15. axb6 {[%emt 0:02:10]} axb6 {[%emt 0:00:24]} 16. Ra7 {[%emt 0:00:34]} Rc7 {[%emt 0:00:27]} 17. Rfa1 {[%emt 0:03:45]} Rfc8 {[%emt 0:01:57]} 18. c3 {[%emt 0:03:05]} Nb8 {[%emt 0:05:08]} 19. Qe2 {[%emt 0:13:39]} c4 {[%emt 0:06:51]} 20. R7a2 {[%emt 0:07:43]} Nc6 {[%emt 0:05:25]} 21. Bxc6 {[%emt 0:02:08]} Bxc6 {[%emt 0:00:20]} 22. Ne1 {[%emt 0:02:28]} Rb8 {[%emt 0:06:50]} 23. Nc2 {[%emt 0:01:22]} Rbb7 {[%emt 0:00:47]} 24. Nb4 {[%emt 0:00:49]} Be8 {[%emt 0:01:24]} 25. e4 {[%emt 0:03:16]} dxe4 {[%emt 0:03:55]} 26. Qxe4 {[%emt 0:02:37]} Ra7 {[%emt 0:01:03]} 27. Qb1 {[%emt 0:03:45]} Bb5 {[%emt 0:05:41]} 28. h3 {[%emt 0:00:45]} Qd7 {[%emt 0:01:07]} 29. Rxa7 {[%emt 0:04:42]} Rxa7 {[%emt 0:00:15]} 30. Rxa7 {[%emt 0:00:11]} Qxa7 {[%emt 0:00:09]} 31. Qd1 {[%emt 0:08:51]} Qa4 {[%emt 0:02:08]} 32. Qd2 {[%emt 0:02:09]} Bc6 {[%emt 0:01:54]} 33. Qe2 {[%emt 0:01:59]} Bd5 {[%emt 0:00:30]} 34. Kh2 {[%emt 0:04:07]} Qa8 {[%emt 0:01:09]} 35. f3 {[%emt 0:00:39]} Qb8+ {[%emt 0:01:04]} 36. Kg1 {[%emt 0:00:48]} Qf4 {[%emt 0:00:57]} 37. Kf2 {[%emt 0:03:17]} Qh4+ {[%emt 0:01:02]} 38. Kg1 {[%emt 0:00:29]} Qf4 {[%emt 0:00:10]} 39. Kf2 {[%emt 0:00:33]} h5 {[%emt 0:03:18]} 40. Qe3 {[%emt 0:01:08]} Qh4+ {[%emt 0:01:57]} 41. Kf1 {[%emt 0:04:25]} Qf6 {[%emt 0:02:40]} 1/2-1/2

[Event "Reykjavik Open 2024"]
[Site "Reykjavik"]
[Date "2024.03.17"]
[Round "4.28"]
[White "Duong, Thanh Nha"]
[Black "Jaroszewicz, Dawid"]
[Result "1-0"]
[ECO "D30"]
[WhiteElo "2144"]
[BlackElo "1757"]
[Annotator "RC"]
[PlyCount "103"]
[EventDate "2024.03.12"]
[EventCountry "ISL"]
[SourceTitle "playchess.com"]
[Source "ChessBase"]
[SourceQuality "1"]
[TimeControl "40/5400+30:1800+30"]

1. c4 {[%emt 0:00:24]} Nf6 {[%emt 0:00:05]} 2. Nf3 {[%emt 0:00:17]} e6 {[%emt 0:00:24]} 3. g3 {[%emt 0:00:25]} d5 {[%emt 0:00:35]} 4. d4 {[%emt 0:00:18]} c5 {[%emt 0:01:28]} 5. cxd5 {[%emt 0:01:57]} exd5 {[%emt 0:00:05]} 6. Bg2 {[%emt 0:00:17]} Nc6 {[%emt 0:01:04]} 7. O-O {[%emt 0:00:10]} Be7 {[%emt 0:00:04]} 8. dxc5 {[%emt 0:02:05]} Bxc5 {[%emt 0:00:22]} 9. a3 {[%emt 0:00:20]} Ne4 {[%emt 0:02:08]} 10. b4 {[%emt 0:03:51]} Be7 {[%emt 0:00:08]} 11. Bb2 {[%emt 0:00:34]} Bf6 {[%emt 0:00:06]} 12. Ra2 {[%emt 0:17:31]} O-O {[%emt 0:03:51]} 13. Bxf6 {[%emt 0:01:17]} Qxf6 {[%emt 0:04:12]} 14. Rc2 {[%emt 0:04:04]} Be6 {[%emt 0:11:07]} 15. b5 {[%emt 0:04:58]} Ne5 {[%emt 0:05:49]} 16. Nbd2 {[%emt 0:12:18]} Rac8 {[%emt 0:22:29]} 17. Nxe5 {[%emt 0:04:39]} Qxe5 {[%emt 0:00:30]} 18. Nf3 {[%emt 0:01:50]} Qd6 {[%emt 0:07:15]} 19. Rxc8 {[%emt 0:03:19]} Rxc8 {[%emt 0:00:05]} 20. Nd4 {[%emt 0:00:27]} Bd7 {[%emt 0:13:04]} 21. a4 {[%emt 0:04:31]} Rc4 {[%emt 0:03:48]} 22. Bxe4 {[%emt 0:11:15]} dxe4 {[%emt 0:00:11]} 23. Nc6 {[%emt 0:00:19]} Qxd1 {[%emt 0:07:30]} 24. Rxd1 {[%emt 0:00:15]} Be8 {[%emt 0:00:02]} 25. Rd8 {[%emt 0:06:21]} Kf8 {[%emt 0:00:04]} 26. Nxa7 {[%emt 0:00:20]} Rxa4 {[%emt 0:02:57]} 27. Nc8 {[%emt 0:01:17]} Rb4 {[%emt 0:02:28]} 28. g4 {[%emt 0:02:05]} f6 {[%emt 0:03:20]} 29. b6 {[%emt 0:07:38]} Kf7 {[%emt 0:02:58]} 30. e3 {[%emt 0:01:52]} g5 {[%emt 0:00:59]} 31. Kg2 {[%emt 0:00:49]} Bc6 {[%emt 0:00:58]} 32. Rd1 {[%emt 0:04:12]} Rb3 {[%emt 0:02:39]} 33. Kg3 {[%emt 0:01:01]} Rb2 {[%emt 0:00:51]} 34. h3 {[%emt 0:00:26]} h6 {[%emt 0:00:08]} 35. Rd4 {[%emt 0:00:22]} Ke6 {[%emt 0:00:58]} 36. Rd6+ {[%emt 0:00:53]} Ke5 {[%emt 0:00:19]} 37. Rd8 {[%emt 0:00:15]} Ke6 {[%emt 0:02:04]} 38. Rd1 {[%emt 0:00:41]} Rb3 {[%emt 0:00:37]} 39. h4 {[%emt 0:00:49]} Rd3 {[%emt 0:00:40]} 40. Rb1 {[%emt 0:00:42]} Rd2 {[%emt 0:00:53]} 41. h5 {[%emt 0:30:31]} Rd5 {[%emt 0:30:54]} 42. Na7 {[%emt 0:01:30]} Kd7 {[%emt 0:00:27]} 43. Rb4 {[%emt 0:00:00]} Re5 {[%emt 0:00:00]} 44. Rd4+ {[%emt 0:00:00]} Bd5 {[%emt 0:00:00]} 45. Nb5 {[%emt 0:00:00]} Kc6 {[%emt 0:00:00]} 46. Nc3 {[%emt 0:00:00]} Kc5 {[%emt 0:00:00]} 47. Nxd5 {[%emt 0:00:00]} Rxd5 {[%emt 0:00:00]} 48. Rxe4 {[%emt 0:00:00]} Kxb6 {[%emt 0:00:00]} 49. Re6+ {[%emt 0:00:00]} Ka7 {[%emt 0:00:00]} 50. Rxf6 {[%emt 0:00:00]} b5 {[%emt 0:00:00]} 51. Rxh6 {[%emt 0:00:00]} b4 {[%emt 0:00:00]} 52. Rc6 {[%emt 0:00:00]} 1-0

[Event "Reykjavik Open 2024"]
[Site "Reykjavik"]
[Date "2024.03.17"]
[Round "4.30"]
[White "Bergsson, Stefan"]
[Black "Klimkowski, Jan"]
[Result "1-0"]
[ECO "B88"]
[WhiteElo "2144"]
[BlackElo "2532"]
[Annotator "TA"]
[PlyCount "79"]
[EventDate "2024.03.12"]
[EventCountry "ISL"]
[SourceTitle "playchess.com"]
[Source "ChessBase"]
[SourceQuality "1"]
[TimeControl "40/5400+30:1800+30"]

{[%evp 21,79,0,8,7,19,15,4,14,27,26,25,31,35,42,47,40,44,51,49,47,64,57,56,19,21,4,26,26,22,-52,0,0,40,49,65,68,61,67,61,49,59,59,67,0,0,0,0,0,0,0,45,31,36,43,121,74,148,66,64,0]} 1. e4 {[%emt 0:08:06]} c5 {[%emt 0:00:11]} 2. Nf3 {[%emt 0:00:05]} d6 {[%emt 0:00:05]} 3. d4 {[%emt 0:00:06]} cxd4 {[%emt 0:00:06]} 4. Nxd4 {[%emt 0:00:03]} Nf6 {[%emt 0:00:06]} 5. Nc3 {[%emt 0:00:04]} a6 {[%emt 0:00:04]} 6. a3 {[%emt 0:00:04]} Nc6 {[%emt 0:05:27]} 7. Bc4 {[%emt 0:01:01]} e6 {[%emt 0:01:11]} 8. Ba2 {[%emt 0:01:51]} Be7 {[%emt 0:01:34]} 9. Be3 {[%emt 0:03:18]} O-O {[%emt 0:00:45]} 10. O-O {[%emt 0:02:07]} Bd7 {[%emt 0:07:05]} 11. f4 {[%emt 0:04:07][%cal Bf2f4,Bf4f5][%mdl 32]} Rc8 {[%emt 0:06:56]} 12. Qe2 {[%emt 0:04:30]} Qa5 {[%emt 0:08:46]} 13. f5 {[%emt 0:04:04][%cal Rf5e6]} Nxd4 {[%emt 0:02:29]} 14. Bxd4 {[%emt 0:00:05] The position is equal.} Kh8 {[%emt 0:11:29]} 15. Rad1 {[%emt 0:06:08]} e5 {[%emt 0:03:53]} 16. Bf2 {[%emt 0:03:01]} Rxc3 {[%emt 0:00:54]} 17. bxc3 {[%emt 0:00:46]} Qxa3 {[%emt 0:01:05]} 18. Bb3 {[%emt 0:03:02] [#] Strongly threatening Ra1.} (18. Qd3 $5) 18... Bb5 {[%emt 0:03:02]} 19. c4 {[%emt 0:06:05]} Bc6 {[%emt 0:00:05]} 20. Bh4 {[%emt 0:01:59]} Bd8 {[%emt 0:05:09]} 21. Bxf6 {[%emt 0:05:53]} Bxf6 {[%emt 0:00:46]} 22. Qe3 {[%emt 0:04:09]} h6 {[%emt 0:08:07]} 23. Rfe1 {[%emt 0:05:06][%cal Oc4c5]} Bh4 {[%emt 0:01:11]} 24. g3 {[%emt 0:00:49]} Bg5 {[%emt 0:03:04]} 25. Qb6 {[%emt 0:01:43]} (25. Qd3 $11) 25... Bd8 {[%emt 0:01:53]} ({Better is} 25... a5 $15 26. c5 a4) 26. Qe3 $11 {[%emt 0:02:42]} Qb4 {[%emt 0:04:03] [#] Dodges c5} 27. c5 {[%emt 0:04:57] Repels Bb6} Bg5 {[%emt 0:02:45]} (27... Ba5 28. Kg2) 28. Qf2 {[%emt 0:02:00]} dxc5 {[%emt 0:03:22][%cal Oc5c4] aiming for ...c4!} 29. Bd5 {[%emt 0:01:47]} Bxd5 {[%emt 0:01:27]} 30. Rxd5 {[%emt 0:01:20]} a5 {[%emt 0:01:14]} 31. h4 {[%emt 0:06:24]} (31. Rxc5 Bd2 32. Rd1 Bc3 $17) (31. Rxe5 a4 32. c3 (32. Rxc5 $2 Bd8 $19) 32... Qxc3 33. Rxc5 Qb3 $11) 31... Be7 {[%emt 0:00:12]} 32. c3 {[%emt 0:01:42]} (32. Rd7 $14 c4 33. c3) 32... Qxc3 {[%emt 0:00:38]} 33. Rd7 {[%emt 0:00:24]} Re8 {[%emt 0:03:22]} 34. Red1 {[%emt 0:01:00]} Qb3 {[%emt 0:01:39]} 35. Kh2 {[%emt 0:05:57]} Bf6 {[%emt 0:06:06]} 36. Qxc5 {[%emt 0:03:25][%cal Oc5d5]} Qf3 {[%emt 0:04:25]} 37. Qc4 {[%emt 0:02:22][%cal Oc4d3][%mdl 1024] Wards off Qe2+. White has compensation. Active counter play!} Rg8 {[%emt 0:02:59]} (37... b5 $14 38. Qxb5 (38. Qxf7 Rg8 $11) 38... Qxe4) 38. R1d2 $16 {[%emt 0:01:13][%cal Oc4e2]} (38. Qxf7 $6 Qxe4 39. Qg6 (39. Rxb7 $2 Qe2+ 40. Kh3 Qxd1 $19) 39... Qf3 $11) (38. Rf1 Qg4 $14) 38... b6 {[%emt 0:01:05]} (38... b5 $142 39. Qd3 (39. Qxf7 Qxe4 40. Qd5 Qb1 $11) 39... Qxd3 40. R2xd3 b4) 39. Qc6 {[%emt 0:03:07]} ({Much weaker is} 39. Rxf7 $6 Bxh4 40. Rg2 Qh5 41. gxh4 b5 $11) (39. Qxf7 $6 Qxe4 40. R7d6 Qxf5 $11) ({White should play} 39. Qe2 $16 Qxe2+ 40. Rxe2) 39... Qg4 {[%emt 0:00:42][%cal Oa5a4]} 40. Qc4 {[%emt 0:01:44][%mdl 32768] Weighted Error Value: White=0.13 (very precise) /Black=0.16 (very precise) .  Mistake:       	White=4     	Black=3      Inaccurate:     	White=1     	Black=2      OK:         	White=11    	Black=8      Best:        	White=1     	Black=1      Brilliant:      	White=1     	---       . Loss on time!?} (40. Rxf7 Bxh4 41. Rg2 Bxg3+ 42. Rxg3 Qh5+ 43. Kg1 Qxf7 $19) (40. Ra2 $14) 1-0

[Event "Reykjavik Open 2024"]
[Site "Reykjavik"]
[Date "2024.03.17"]
[Round "4.31"]
[White "Yilmazyerli, Mert"]
[Black "Mueller, Magnus"]
[Result "1-0"]
[ECO "A57"]
[WhiteElo "2526"]
[BlackElo "2144"]
[Annotator "TA"]
[PlyCount "67"]
[EventDate "2024.03.12"]
[EventCountry "ISL"]
[SourceTitle "playchess.com"]
[Source "ChessBase"]
[SourceQuality "1"]
[TimeControl "40/5400+30:1800+30"]

{[%evp 9,67,39,56,45,77,68,97,77,96,95,100,55,85,43,90,79,80,60,95,84,81,52,88,80,125,121,115,121,128,118,116,105,113,105,127,106,110,110,110,106,126,134,182,167,227,215,424,439,435,362,542,506,700,602,1161,956,1164,1089,1057,696]} 1. d4 {[%emt 0:01:46]} Nf6 {[%emt 0:03:08]} 2. c4 {[%emt 0:00:06]} c5 {[%emt 0:01:07]} 3. d5 {[%emt 0:02:37]} b5 {[%emt 0:02:20]} 4. Qc2 {[%emt 0:04:46]} b4 {[%emt 0:02:15]} 5. a3 {[%emt 0:02:28]} e5 {[%emt 0:12:26][%cal Be7e5,Be5e4][%mdl 32]} 6. Nf3 {[%emt 0:03:55]} e4 {[%emt 0:04:51]} 7. Ng5 {[%emt 0:00:29][%cal Bf3g5,Bg5h3,Bh3f2][%mdl 32]} b3 {[%emt 0:00:34]} 8. Qxb3 {[%emt 0:01:33] Hoping for Nd2. White is better.} h6 {[%emt 0:00:32]} 9. Nh3 {[%emt 0:02:28] White is much more active.} d6 {[%emt 0:00:26]} 10. f4 {[%emt 0:04:28]} Ng4 {[%emt 0:06:03]} 11. Nc3 {[%emt 0:03:42][%cal Bb1c3,Bc3d1,Bd1e3][%mdl 32]} f5 {[%emt 0:00:07]} (11... e3 $14 {might be stronger.}) 12. Nd1 {[%emt 0:01:57]} Nd7 {[%emt 0:01:02]} 13. Nhf2 {[%emt 0:03:55]} Ngf6 {[%emt 0:12:04]} 14. Ne3 {[%emt 0:04:50]} Nb6 {[%emt 0:01:23]} 15. Bd2 {[%emt 0:04:00][%cal Og2g4]} g5 {[%emt 0:08:55][%cal Bg7g5,Bg5g4][%mdl 32]} 16. g3 {[%emt 0:01:10]} Rg8 {[%emt 0:05:22]} 17. Bh3 {[%emt 0:07:09]} g4 {[%emt 0:01:04]} 18. Bf1 {[%emt 0:01:43]} Bg7 {[%emt 0:02:01]} 19. Bc3 {[%emt 0:02:47]} Bd7 {[%emt 0:00:52]} 20. Qc2 {[%emt 0:00:37]} Qe7 {[%emt 0:05:04]} 21. b3 {[%emt 0:04:48]} a5 {[%emt 0:08:32][%cal Ba7a5,Ba5a4][%mdl 32]} 22. Rb1 {[%emt 0:02:18]} h5 {[%emt 0:00:41][%cal Oh5h4]} 23. h4 {[%emt 0:00:16]} Kf7 {[%emt 0:01:22]} 24. Qd2 {[%emt 0:05:19]} a4 {[%emt 0:02:58]} 25. b4 {[%emt 0:00:22] Black must now prevent bxc5.} cxb4 {[%emt 0:02:52]} (25... Rge8 $16 {might work better.}) 26. Rxb4 $18 {[%emt 0:00:55]} Rab8 {[%emt 0:02:58] [#]} (26... Rgb8 {was called for.} 27. Bg2 Qd8) 27. Bg2 $1 {[%emt 0:01:38]} Bh6 $2 {[%emt 0:02:10]} (27... Na8 {was worth a try.} 28. O-O Rxb4 29. axb4 (29. Bxb4 Rc8 $16) 29... Rb8) 28. Qb2 {[%emt 0:03:26]} Qd8 {[%emt 0:00:58]} 29. Bd4 {[%emt 0:01:04][%cal Rd4b6]} Nxc4 {[%emt 0:02:08]} (29... Bg7 $142 30. Rxb6 (30. Bxb6 Rxb6 31. Rxb6 Nxd5 $14) 30... Rxb6 31. Qxb6 (31. Bxb6 Nxd5 32. Bxd8 Bxb2 $18) 31... Qxb6 32. Bxb6 Rb8) 30. Nxc4 {[%emt 0:01:13] White is clearly winning.} Nxd5 {[%emt 0:00:07]} 31. Nxd6+ {[%emt 0:02:06]} Ke6 {[%emt 0:00:06]} 32. Nb7 {[%emt 0:04:29]} Rxb7 {[%emt 0:01:22]} 33. Rxb7 {[%emt 0:01:56]} Qa5+ {[%emt 0:00:10]} 34. Qd2 {[%emt 0:01:13] Weighted Error Value: White=0.19 (very precise) /Black=0.50.  Mistake:       	---       	Black=5      Inaccurate:     	White=3     	Black=8      OK:         	White=9     	Black=5      Best:        	---       	Black=1      Strong:       	White=1     	---} 1-0

[Event "Reykjavik Open 2024"]
[Site "Reykjavik"]
[Date "2024.03.17"]
[Round "4.32"]
[White "George Samir, David"]
[Black "Gokerkan, Cem Kaan"]
[Result "0-1"]
[ECO "B12"]
[WhiteElo "2130"]
[BlackElo "2523"]
[Annotator "TA"]
[PlyCount "78"]
[EventDate "2024.03.12"]
[EventCountry "ISL"]
[SourceTitle "playchess.com"]
[Source "ChessBase"]
[SourceQuality "1"]
[TimeControl "40/5400+30:1800+30"]

{[%evp 11,78,0,0,0,0,0,0,-35,-39,-35,-40,-110,-118,-131,-130,-129,-140,-168,-165,-157,-158,-168,-144,-189,-209,-183,-92,-94,-93,-81,-86,-91,-66,-104,-101,-99,-95,-98,-77,-87,-70,-114,-83,-132,-125,-147,-121,-158,-158,-178,-177,-196,-171,-302,-314,-392,-354,-416,-417,-604,-581,-660,-666,-789,-720,-825,-803,-952,-941]} 1. e4 {[%emt 0:00:02]} c6 {[%emt 0:07:59]} 2. d4 {[%emt 0:00:46]} d5 {[%emt 0:00:01]} 3. e5 {[%emt 0:02:29]} c5 {[%emt 0:00:21]} 4. Nf3 {[%emt 0:00:06]} Nc6 {[%emt 0:00:22]} 5. dxc5 {[%emt 0:00:13]} Bg4 {[%emt 0:00:06]} 6. Bb5 {[%emt 0:05:03]} Qa5+ {[%emt 0:01:07]} 7. Nc3 {[%emt 0:00:02]} e6 {[%emt 0:00:04]} 8. Be3 {[%emt 0:01:50]} Nge7 {[%emt 0:00:20]} 9. h3 {[%emt 0:01:44] Die Stellung ist ausgeglichen.} Bxf3 {[%emt 0:01:14]} 10. Qxf3 {[%emt 0:00:12]} a6 {[%emt 0:00:14]} 11. Ba4 {[%emt 0:02:06] [#]} (11. Bxc6+ $1 $15 Nxc6 12. Qg4) 11... O-O-O $1 $17 {[%emt 0:12:12]} 12. Bd2 {[%emt 0:13:26]} Nxe5 {[%emt 0:02:00] Hervorragende Reitkunst.} 13. Qe2 {[%emt 0:00:36]} Nc4 {[%emt 0:02:57][%cal Oc4d2]} 14. O-O-O {[%emt 0:03:28][%cal Oc3d5] Droht Nxd5! und aus.} Nxd2 {[%emt 0:01:53]} 15. Rxd2 {[%emt 0:00:33]} g6 {[%emt 0:05:19][%cal Od5d4] Zielt auf ...d4! ab.} 16. Kb1 {[%emt 0:22:28]} Bh6 {[%emt 0:16:17]} 17. Rd3 {[%emt 0:02:14]} d4 $1 {[%emt 0:01:15]} (17... Qxc5 18. h4) 18. Qe5 {[%emt 0:05:04][%cal Oh1d1]} Nf5 {[%emt 0:06:00]} ({Besser ist} 18... dxc3 $19 19. Bd7+ Rxd7 20. Qxh8+ Qd8 21. Qxc3 Rxd3 22. Qxd3 Qxd3 23. cxd3 Nd5) 19. Bd7+ {[%emt 0:05:28]} Rxd7 {[%emt 0:00:31]} (19... Kxd7 $2 20. c6+ Kxc6 21. Qxa5 $18) 20. Qxh8+ {[%emt 0:00:13]} Rd8 {[%emt 0:00:31] Aktives Gegenspiel!} 21. Qf6 {[%emt 0:10:12]} dxc3 {[%emt 0:06:48]} 22. Rhd1 {[%emt 0:03:27] [#]} Rf8 {[%emt 0:00:02] Droht stark ...Bg7.} ({Minderwertig wäre} 22... Rxd3 23. Rxd3 Kb8 (23... Qxc5 24. Qd8#) (23... Bg7 $2 24. Qxf7 Kb8 25. c6 $18) 24. g4 Qxc5 25. gxf5 Qxf2 26. Qd8+ (26. bxc3 Qg1+) 26... Ka7 27. fxe6 (27. Rxc3 $2 Qg1+) (27. bxc3 e5 $11) 27... fxe6 28. Qd4+ (28. bxc3 Qf1+ 29. Rd1 Qb5+ 30. Ka1 Bg7 $11) 28... Qxd4 29. Rxd4 $18) 23. Qxc3 {[%emt 0:08:14]} Qxc3 {[%emt 0:03:40]} 24. Rxc3 {[%emt 0:00:05]} Ne7 $36 {[%emt 0:00:08][%mdl 2048] Schwarz ist am Drücker.} 25. Rcd3 {[%emt 0:01:19]} Nc6 {[%emt 0:01:44]} 26. g3 {[%emt 0:01:09]} e5 {[%emt 0:01:12]} 27. c3 {[%emt 0:00:25]} (27. f3 $142) 27... e4 {[%emt 0:01:05]} 28. Rd5 {[%emt 0:00:27]} Re8 {[%emt 0:02:00]} 29. Rd7 {[%emt 0:01:27]} Ne5 {[%emt 0:00:15]} 30. R7d5 {[%emt 0:00:12]} f5 {[%emt 0:05:28]} 31. Re1 {[%emt 0:02:33]} Kc7 {[%emt 0:00:47]} ({Jedoch nicht} 31... Nd3 $2 32. Rxd3 Bf8 33. Rd5 $18) 32. b3 {[%emt 0:03:03]} (32. b4 $142) 32... Kc6 $19 {[%emt 0:02:41]} 33. Red1 {[%emt 0:02:34]} Bf8 {[%emt 0:04:03]} 34. b4 {[%emt 0:00:22]} Nd3 {[%emt 0:00:01]} 35. c4 {[%emt 0:00:05]} (35. R1xd3 $142 exd3 36. Rxd3) 35... Nxb4 {[%emt 0:01:14] Schwarz steht klar auf Gewinn.} 36. Rd7 {[%emt 0:00:05]} Bxc5 {[%emt 0:00:51]} 37. Rxh7 {[%emt 0:00:05]} Nd3 {[%emt 0:00:04]} 38. Rh6 {[%emt 0:00:31]} Re6 {[%emt 0:00:38]} 39. h4 {[%emt 0:00:01]} Nxf2 {[%emt 0:00:34] Gewichteter Fehlerwert: Weiß=0.49/Schwarz=0.11 (sehr präzise) .  Fehler:       	Weiß=4     	Schwarz=1     Ungenau:       	Weiß=5     	---        OK:         	Weiß=9     	Schwarz=16    Bester:       	---       	Schwarz=4     Stark:        	---       	Schwarz=1} 0-1

[Event "Reykjavik Open 2024"]
[Site "Reykjavik"]
[Date "2024.03.17"]
[Round "4.33"]
[White "Stefansson, Hannes"]
[Black "Stanford, Sheila Barth"]
[Result "1-0"]
[ECO "B90"]
[WhiteElo "2481"]
[BlackElo "2123"]
[Annotator "TA"]
[PlyCount "55"]
[EventDate "2024.03.12"]
[EventCountry "ISL"]
[SourceTitle "playchess.com"]
[Source "ChessBase"]
[SourceQuality "1"]
[TimeControl "40/5400+30:1800+30"]

{[%evp 11,55,21,23,0,8,0,0,-7,0,0,0,0,0,-24,-4,-28,-21,-99,-87,-91,-93,-56,-62,-118,-97,-105,-116,-109,-100,-93,-89,-154,-63,-37,-60,-78,-66,-381,-71,-73,-85,-68,-65,-240,29989,29990]} 1. e4 {[%emt 0:02:14]} c5 {[%emt 0:00:06]} 2. Nf3 {[%emt 0:00:13]} d6 {[%emt 0:00:24]} 3. d4 {[%emt 0:00:16]} cxd4 {[%emt 0:00:05]} 4. Nxd4 {[%emt 0:00:17]} Nf6 {[%emt 0:00:16]} 5. Nc3 {[%emt 0:00:26]} a6 {[%emt 0:00:26]} 6. h3 {[%emt 0:00:35]} e5 {[%emt 0:01:02]} 7. Nf3 {[%emt 0:00:38]} Be7 {[%emt 0:04:35]} 8. g4 {[%emt 0:01:40]} h6 {[%emt 0:00:40]} 9. Rg1 {[%emt 0:02:15] The position is equal.} b5 {[%emt 0:04:21]} 10. g5 {[%emt 0:00:50]} hxg5 {[%emt 0:01:27]} 11. Nxg5 {[%emt 0:00:15]} Bb7 {[%emt 0:03:25]} 12. Qf3 {[%emt 0:06:52]} (12. Be3 $5) 12... Nc6 {[%emt 0:10:22]} 13. Be3 {[%emt 0:03:35]} Nd4 {[%emt 0:02:55]} 14. Qd1 {[%emt 0:00:50]} (14. Bxd4 $11 exd4 15. Nd5) 14... d5 $17 {[%emt 0:13:04]} 15. Nxd5 {[%emt 0:15:15]} Nxd5 {[%emt 0:01:35]} (15... Nxe4 {with more complications.} 16. Nxe4 Qxd5 17. Bg2 O-O-O) 16. exd5 {[%emt 0:00:16]} Bxd5 {[%emt 0:11:12]} 17. Bxd4 {[%emt 0:07:29]} (17. c3 $15 Nf5 18. Qd3 Nxe3 19. Qxe3) 17... exd4 {[%emt 0:06:02]} (17... Bxg5 18. Bb6 (18. Bxe5 f6 $11) 18... Qxb6 19. Qxd5 $14) 18. Qxd4 {[%emt 0:02:11][%cal Oe1c1]} Qa5+ $1 {[%emt 0:14:48]} (18... Bxg5 $6 19. Qe5+ Kf8 (19... Be7 20. O-O-O $14) 20. Qxg5 (20. Rxg5 f6 $11) 20... Qxg5 21. Rxg5 Re8+ 22. Kd2 $11) 19. c3 {[%emt 0:02:13]} O-O-O {[%emt 0:00:33][%mdl 1024] Black has strong compensation.} (19... Bxa2 $2 20. Bg2 (20. Qxg7 O-O-O $16) 20... Rc8 21. Qxg7 $18) 20. Be2 {[%emt 0:05:01] Against Bf3} Qc7 {[%emt 0:07:46] Inhibits Qa7. ...g6 would now be deadly.} (20... Bxa2 $2 21. Qa7 (21. Qxg7 Rhg8 $16) 21... Qc7 22. Qxa6+ Qb7 23. Rxa2 $18) 21. a4 {[%emt 0:08:49]} ({White should try} 21. Qg4+ Kb8 22. Rd1) 21... Bf6 {[%emt 0:07:45]} (21... Rhe8 $17 {Threatens to win with ...Bxg5.} 22. O-O-O Kb8 (22... Bxg5+ 23. Rxg5 $11) 23. axb5 (23. Qxg7 $2 Qf4+ 24. Kb1 Bf6 $19) 23... Qa5 (23... Bc5 24. Qg4 $17)) 22. Qg4+ $15 {[%emt 0:01:09]} Kb8 {[%emt 0:00:02] ...Rhe8 is the strong threat.} 23. Kf1 {[%emt 0:03:30]} Rhe8 $1 {[%emt 0:01:54][%cal Oe8e2] Hoping for ...Rxe2!} 24. Rg3 $2 {[%emt 0:06:47][%mdl 8192] [#]} (24. axb5 Rxe2 25. Kxe2 (25. Qxe2 $2 Bc4 $19) 25... Qe5+ (25... axb5 26. Kf1 $16) 26. Kf1 Bxg5 $17 (26... axb5 $2 27. Rg3 $18)) (24. h4 $15) 24... Rxe2 $1 {[%emt 0:04:07][%mdl 512]} 25. Kxe2 $17 {[%emt 0:00:18]} (25. Qxe2 $2 {loses.} Bc4 $19) 25... Bc4+ {[%emt 0:00:32] A strong pair of Bishops.} 26. Ke1 {[%emt 0:00:53]} Qe5+ {[%emt 0:03:16]} 27. Qe4 $2 {[%emt 0:04:10] [#]} ({White must play} 27. Ne4 $15 Bg5 28. f3 (28. Qxg5 $2 {is a self mate.} Qxe4+ 29. Qe3 Qh1+) (28. Rd1 $2 f5 $19)) 27... Bxg5 $4 {[%emt 0:00:42][%mdl 8192]} 28. Qxe5+ {[%emt 0:00:35] Weighted Error Value: White=0.49/Black=0.51.  Loses game:     	White=2     	---        Missed win:     	---       	Black=2      Mistake:       	White=3     	Black=1      OK:         	White=4     	Black=8      Best:        	White=3     	Black=3      Strong:       	---       	Black=2} 1-0